[Event "*** SCC Grand Prix: Titled Tuesday Blitz"]
[Site "Chess.com"]
[Date "2020.06.23"]
[Round "5"]
[White "rugbyclub"]
[Black "Chessdreamer2020"]
[Result "0-1"]
[WhiteElo "2135"]
[BlackElo "2450"]
[TimeControl "180+1"]
[EndTime "10:53:26 PDT"]
[Termination "Chessdreamer2020 won by resignation"]

1. c4 {[%clk 0:03:00.8]} 1... d6 {[%clk 0:02:59]} 2. Nc3 {[%clk 0:03:00.8]} 2...
e5 {[%clk 0:02:57.6]} 3. Nf3 {[%clk 0:02:52]} 3... f5 {[%clk 0:02:57.2]} 4. g3
{[%clk 0:02:48.7]} 4... Nf6 {[%clk 0:02:56.9]} 5. d4 {[%clk 0:02:47.3]} 5... e4
{[%clk 0:02:56.2]} 6. Nh4 {[%clk 0:02:47.3]} 6... Be7 {[%clk 0:02:51.1]} 7. Bh3
{[%clk 0:02:46.7]} 7... g6 {[%clk 0:02:48]} 8. O-O {[%clk 0:02:43]} 8... O-O
{[%clk 0:02:47.6]} 9. f3 {[%clk 0:02:42.6]} 9... exf3 {[%clk 0:02:39.7]} 10.
exf3 {[%clk 0:02:42.2]} 10... d5 {[%clk 0:02:39.7]} 11. c5 {[%clk 0:02:38.4]}
11... b6 {[%clk 0:02:39.5]} 12. cxb6 {[%clk 0:02:32.3]} 12... axb6 {[%clk
0:02:39.5]} 13. Ng2 {[%clk 0:02:22.6]} 13... c5 {[%clk 0:02:39]} 14. dxc5 {[%clk
0:02:20.3]} 14... bxc5 {[%clk 0:02:38.5]} 15. Nf4 {[%clk 0:02:20.3]} 15... d4
{[%clk 0:02:23.8]} 16. Qb3+ {[%clk 0:02:18.4]} 16... Kg7 {[%clk 0:02:15.8]} 17.
Ncd5 {[%clk 0:02:14.2]} 17... Nxd5 {[%clk 0:02:15]} 18. Qxd5 {[%clk 0:02:10.6]}
18... Qxd5 {[%clk 0:02:07.8]} 19. Nxd5 {[%clk 0:02:11.5]} 19... Bd6 {[%clk
0:02:07.2]} 20. Nb6 {[%clk 0:02:05.6]} 20... Ra7 {[%clk 0:02:02.9]} 21. Nxc8
{[%clk 0:02:05.1]} 21... Rxc8 {[%clk 0:02:02.7]} 22. Bd2 {[%clk 0:01:59.7]}
22... c4 {[%clk 0:02:00.6]} 23. Rfc1 {[%clk 0:01:47.2]} 23... Be5 {[%clk
0:01:51.9]} 24. f4 {[%clk 0:01:46.3]} 24... Bf6 {[%clk 0:01:52.2]} 25. Bg2
{[%clk 0:01:41.7]} 25... c3 {[%clk 0:01:52.3]} 26. bxc3 {[%clk 0:01:41.3]} 26...
dxc3 {[%clk 0:01:52.7]} 27. Be3 {[%clk 0:01:39.4]} 27... Re7 {[%clk 0:01:52.1]}
28. Kf2 {[%clk 0:01:38.3]} 28... c2 {[%clk 0:01:52.2]} 29. a4 {[%clk 0:01:30.5]}
29... Bxa1 {[%clk 0:01:51]} 30. Rxa1 {[%clk 0:01:30.6]} 30... Rxe3 {[%clk
0:01:49.3]} 31. Kxe3 {[%clk 0:01:30.6]} 31... c1=Q+ {[%clk 0:01:49.1]} 0-1

[Event "*** SCC Grand Prix: Titled Tuesday Blitz"]
[Site "Chess.com"]
[Date "2020.06.23"]
[Round "5"]
[White "louis198"]
[Black "kikydu96"]
[Result "1-0"]
[WhiteElo "2494"]
[BlackElo "2315"]
[TimeControl "180+1"]
[EndTime "10:53:32 PDT"]
[Termination "louis198 won by resignation"]

1. d4 {[%clk 0:03:00.9]} 1... f5 {[%clk 0:02:56.4]} 2. Bf4 {[%clk 0:02:58.4]}
2... Nf6 {[%clk 0:02:54.9]} 3. e3 {[%clk 0:02:58.2]} 3... d6 {[%clk 0:02:48.2]}
4. h3 {[%clk 0:02:57.3]} 4... e6 {[%clk 0:02:42.5]} 5. Nf3 {[%clk 0:02:56.7]}
5... Be7 {[%clk 0:02:41.9]} 6. Bc4 {[%clk 0:02:56]} 6... O-O {[%clk 0:02:40.1]}
7. O-O {[%clk 0:02:55]} 7... h6 {[%clk 0:02:34.4]} 8. a4 {[%clk 0:02:47.7]} 8...
a5 {[%clk 0:02:30]} 9. Nbd2 {[%clk 0:02:43.5]} 9... b6 {[%clk 0:02:29.4]} 10.
Re1 {[%clk 0:02:37.2]} 10... Bb7 {[%clk 0:02:28.8]} 11. Bxe6+ {[%clk 0:02:35.9]}
11... Kh8 {[%clk 0:02:28.2]} 12. Nh4 {[%clk 0:02:17]} 12... Qe8 {[%clk
0:02:18.9]} 13. Bxf5 {[%clk 0:02:15.6]} 13... Nd5 {[%clk 0:02:07.3]} 14. Ng6+
{[%clk 0:02:12.4]} 14... Kg8 {[%clk 0:02:03.3]} 15. Be6+ {[%clk 0:02:09.5]}
15... Kh7 {[%clk 0:02:02.6]} 16. Nxf8+ {[%clk 0:02:07.1]} 16... Qxf8 {[%clk
0:02:01.7]} 17. Bg3 {[%clk 0:01:52.4]} 17... Qf6 {[%clk 0:01:58.1]} 18. Qg4
{[%clk 0:01:49.4]} 18... Nb4 {[%clk 0:01:49.7]} 19. c3 {[%clk 0:01:41.1]} 19...
N4c6 {[%clk 0:01:37.6]} 20. Ne4 {[%clk 0:01:34.5]} 20... Qg6 {[%clk 0:01:14.9]}
21. Bf5 {[%clk 0:01:34.1]} 1-0

[Event "*** SCC Grand Prix: Titled Tuesday Blitz"]
[Site "Chess.com"]
[Date "2020.06.23"]
[Round "5"]
[White "VladimirBugayev"]
[Black "Philosopherrr"]
[Result "0-1"]
[WhiteElo "2275"]
[BlackElo "2485"]
[TimeControl "180+1"]
[EndTime "10:53:33 PDT"]
[Termination "Philosopherrr won by checkmate"]

1. e4 {[%clk 0:03:00.9]} 1... c5 {[%clk 0:02:58.2]} 2. a3 {[%clk 0:03:00.5]}
2... e6 {[%clk 0:02:53.5]} 3. b4 {[%clk 0:02:59.6]} 3... cxb4 {[%clk 0:02:53.8]}
4. axb4 {[%clk 0:02:59.7]} 4... Bxb4 {[%clk 0:02:53.9]} 5. Bb2 {[%clk
0:02:59.9]} 5... Nf6 {[%clk 0:02:52.7]} 6. e5 {[%clk 0:02:59.7]} 6... Nd5 {[%clk
0:02:53]} 7. c4 {[%clk 0:02:59.6]} 7... Nc7 {[%clk 0:02:52]} 8. Ra3 {[%clk
0:02:58.9]} 8... O-O {[%clk 0:02:49.8]} 9. Rg3 {[%clk 0:02:54.6]} 9... Nc6
{[%clk 0:02:45.4]} 10. Qg4 {[%clk 0:02:50.8]} 10... g6 {[%clk 0:02:43.8]} 11. h4
{[%clk 0:02:51.3]} 11... d6 {[%clk 0:02:43.4]} 12. h5 {[%clk 0:02:48.1]} 12...
Nxe5 {[%clk 0:02:43.1]} 13. Bxe5 {[%clk 0:02:47.4]} 13... dxe5 {[%clk
0:02:43.3]} 14. hxg6 {[%clk 0:02:40.4]} 14... fxg6 {[%clk 0:02:41]} 15. Rxh7
{[%clk 0:02:40.3]} 15... Qf6 {[%clk 0:02:37.3]} 16. Rf3 {[%clk 0:02:22.7]} 16...
Kxh7 {[%clk 0:02:33.2]} 17. Rxf6 {[%clk 0:02:21.7]} 17... Rxf6 {[%clk
0:02:34.1]} 18. Nf3 {[%clk 0:02:15.7]} 18... Kg7 {[%clk 0:02:34.1]} 19. Bd3
{[%clk 0:01:59.2]} 19... Bd7 {[%clk 0:02:24.1]} 20. Nh4 {[%clk 0:01:52.8]} 20...
Be8 {[%clk 0:02:22.9]} 21. Nf3 {[%clk 0:01:45.2]} 21... Rd8 {[%clk 0:02:20.7]}
22. Nxe5 {[%clk 0:01:45]} 22... Bc5 {[%clk 0:02:14.1]} 23. f4 {[%clk 0:01:44.3]}
23... Bd4 {[%clk 0:02:09.3]} 24. Bc2 {[%clk 0:01:32]} 24... b5 {[%clk
0:01:55.5]} 25. Be4 {[%clk 0:01:24.6]} 25... bxc4 {[%clk 0:01:53.2]} 26. Nxc4
{[%clk 0:01:21]} 26... Nd5 {[%clk 0:01:52.7]} 27. g3 {[%clk 0:01:19.7]} 27...
Bb5 {[%clk 0:01:48.9]} 28. Ne5 {[%clk 0:01:15.8]} 28... Bxe5 {[%clk 0:01:48.7]}
29. fxe5 {[%clk 0:01:15.8]} 29... Rf1# {[%clk 0:01:48.8]} 0-1

[Event "*** SCC Grand Prix: Titled Tuesday Blitz"]
[Site "Chess.com"]
[Date "2020.06.23"]
[Round "5"]
[White "bait_or_mate"]
[Black "Oleksandr_Bortnyk"]
[Result "0-1"]
[WhiteElo "2617"]
[BlackElo "2898"]
[TimeControl "180+1"]
[EndTime "10:53:40 PDT"]
[Termination "Oleksandr_Bortnyk won by resignation"]

1. d4 {[%clk 0:03:00.9]} 1... Nf6 {[%clk 0:02:59]} 2. c4 {[%clk 0:03:01.3]} 2...
e6 {[%clk 0:02:59.6]} 3. Nf3 {[%clk 0:03:01.2]} 3... d5 {[%clk 0:02:58.7]} 4. g3
{[%clk 0:03:01.3]} 4... g6 {[%clk 0:02:59.1]} 5. Bg2 {[%clk 0:02:59.8]} 5... Nc6
{[%clk 0:02:59.6]} 6. Qc2 {[%clk 0:02:53.3]} 6... Bg7 {[%clk 0:02:59.5]} 7. O-O
{[%clk 0:02:53.3]} 7... O-O {[%clk 0:02:59.4]} 8. Rd1 {[%clk 0:02:52.4]} 8...
Re8 {[%clk 0:02:59.3]} 9. Bf4 {[%clk 0:02:44.1]} 9... a6 {[%clk 0:02:43.4]} 10.
Nbd2 {[%clk 0:02:33.7]} 10... Nh5 {[%clk 0:02:37.1]} 11. Bg5 {[%clk 0:02:29]}
11... Nxd4 {[%clk 0:02:37.1]} 12. Nxd4 {[%clk 0:02:18.6]} 12... Qxg5 {[%clk
0:02:36.3]} 13. N2f3 {[%clk 0:02:13.1]} 13... Qe7 {[%clk 0:02:36]} 14. cxd5
{[%clk 0:01:59.4]} 14... exd5 {[%clk 0:02:36.9]} 15. Rac1 {[%clk 0:01:59.3]}
15... c6 {[%clk 0:02:37.2]} 16. e3 {[%clk 0:01:57.5]} 16... Nf6 {[%clk
0:02:35.1]} 17. Nd2 {[%clk 0:01:52.7]} 17... Ng4 {[%clk 0:02:30.1]} 18. N2b3
{[%clk 0:01:37.3]} 18... a5 {[%clk 0:02:18.3]} 19. a3 {[%clk 0:01:34]} 19... a4
{[%clk 0:02:15.8]} 20. Nc5 {[%clk 0:01:33.9]} 20... Nxe3 {[%clk 0:02:13.9]} 21.
fxe3 {[%clk 0:01:10.3]} 21... Qxe3+ {[%clk 0:02:14.8]} 22. Kh1 {[%clk
0:01:10.6]} 22... Bxd4 {[%clk 0:02:14.5]} 23. Rd3 {[%clk 0:01:10.5]} 23... Qe1+
{[%clk 0:01:59.6]} 24. Rxe1 {[%clk 0:01:01.2]} 24... Rxe1+ {[%clk 0:02:00.5]}
25. Bf1 {[%clk 0:01:01.1]} 25... Rxf1+ {[%clk 0:01:59.9]} 26. Kg2 {[%clk
0:01:00.8]} 26... Rf2+ {[%clk 0:01:59.8]} 27. Qxf2 {[%clk 0:01:01.4]} 27... Bxf2
{[%clk 0:02:00.7]} 28. Kxf2 {[%clk 0:01:02.1]} 28... b6 {[%clk 0:02:01.1]} 0-1

[Event "*** SCC Grand Prix: Titled Tuesday Blitz"]
[Site "Chess.com"]
[Date "2020.06.23"]
[Round "5"]
[White "1f3_2g41-0"]
[Black "jonaszmb"]
[Result "0-1"]
[WhiteElo "2239"]
[BlackElo "2480"]
[TimeControl "180+1"]
[EndTime "10:53:41 PDT"]
[Termination "jonaszmb won by checkmate"]

1. e4 {[%clk 0:03:00.9]} 1... c5 {[%clk 0:03:00]} 2. Nf3 {[%clk 0:03:00.5]} 2...
Nc6 {[%clk 0:02:59.1]} 3. Bb5 {[%clk 0:02:59.5]} 3... a6 {[%clk 0:02:58.9]} 4.
Bxc6 {[%clk 0:02:59.1]} 4... dxc6 {[%clk 0:02:59.8]} 5. O-O {[%clk 0:02:59.2]}
5... Qc7 {[%clk 0:03:00.3]} 6. c3 {[%clk 0:02:59]} 6... e5 {[%clk 0:02:59.9]} 7.
d4 {[%clk 0:02:58.8]} 7... cxd4 {[%clk 0:02:59.9]} 8. cxd4 {[%clk 0:02:59.2]}
8... exd4 {[%clk 0:03:00.8]} 9. Qxd4 {[%clk 0:02:58.6]} 9... Nf6 {[%clk
0:02:53.3]} 10. Bg5 {[%clk 0:02:57.8]} 10... Be7 {[%clk 0:02:45.9]} 11. Nc3
{[%clk 0:02:49]} 11... Be6 {[%clk 0:02:38.7]} 12. Rac1 {[%clk 0:02:43.3]} 12...
Rd8 {[%clk 0:02:32.6]} 13. Qa4 {[%clk 0:02:39.6]} 13... O-O {[%clk 0:02:25.5]}
14. Rfd1 {[%clk 0:02:36]} 14... Rxd1+ {[%clk 0:02:22.5]} 15. Rxd1 {[%clk
0:02:36.9]} 15... Rd8 {[%clk 0:02:22.2]} 16. Rxd8+ {[%clk 0:02:32.2]} 16... Qxd8
{[%clk 0:02:23.1]} 17. h4 {[%clk 0:02:30.3]} 17... h6 {[%clk 0:02:15.3]} 18. Bf4
{[%clk 0:02:28.1]} 18... Ng4 {[%clk 0:02:08.9]} 19. g3 {[%clk 0:02:06]} 19...
Bc5 {[%clk 0:02:06]} 20. Nd1 {[%clk 0:01:51.6]} 20... Qd3 {[%clk 0:01:52.3]} 21.
Ne1 {[%clk 0:01:19]} 21... Qe2 {[%clk 0:01:48.8]} 22. Ng2 {[%clk 0:01:08.9]}
22... Bxf2+ {[%clk 0:01:44.2]} 23. Nxf2 {[%clk 0:00:59.3]} 23... Qxf2+ {[%clk
0:01:45.1]} 24. Kh1 {[%clk 0:00:59.7]} 24... Qf1# {[%clk 0:01:45.7]} 0-1

[Event "*** SCC Grand Prix: Titled Tuesday Blitz"]
[Site "Chess.com"]
[Date "2020.06.23"]
[Round "5"]
[White "Ermito2020"]
[Black "DishonorOnYourCow"]
[Result "1-0"]
[WhiteElo "2498"]
[BlackElo "2321"]
[TimeControl "180+1"]
[EndTime "10:53:52 PDT"]
[Termination "Ermito2020 won by checkmate"]

1. e4 {[%clk 0:03:00.9]} 1... e5 {[%clk 0:02:58.8]} 2. Nf3 {[%clk 0:03:00.6]}
2... Nc6 {[%clk 0:02:59]} 3. d4 {[%clk 0:03:01.1]} 3... exd4 {[%clk 0:02:58.6]}
4. Bc4 {[%clk 0:03:01.6]} 4... Nf6 {[%clk 0:02:58.2]} 5. O-O {[%clk 0:03:01.7]}
5... Bc5 {[%clk 0:02:52.6]} 6. e5 {[%clk 0:02:56.2]} 6... d5 {[%clk 0:02:49.7]}
7. exf6 {[%clk 0:02:49.7]} 7... dxc4 {[%clk 0:02:48.2]} 8. Re1+ {[%clk
0:02:49.4]} 8... Be6 {[%clk 0:02:46.6]} 9. fxg7 {[%clk 0:02:49]} 9... Rg8 {[%clk
0:02:45.4]} 10. Bg5 {[%clk 0:02:43.5]} 10... Qd7 {[%clk 0:02:41.5]} 11. Bf6
{[%clk 0:02:25.9]} 11... Be7 {[%clk 0:02:39.4]} 12. Bxe7 {[%clk 0:02:24.6]}
12... Nxe7 {[%clk 0:02:37.4]} 13. Qxd4 {[%clk 0:02:16.8]} 13... Qxd4 {[%clk
0:02:20.4]} 14. Nxd4 {[%clk 0:02:16.3]} 14... Rxg7 {[%clk 0:02:20.8]} 15. Nxe6
{[%clk 0:02:14]} 15... fxe6 {[%clk 0:02:21.7]} 16. Rxe6 {[%clk 0:02:13.1]} 16...
Kf7 {[%clk 0:02:20.6]} 17. Re4 {[%clk 0:01:57.9]} 17... Rd8 {[%clk 0:02:14]} 18.
Nc3 {[%clk 0:01:54.6]} 18... Rd2 {[%clk 0:01:41]} 19. Rae1 {[%clk 0:01:49.5]}
19... Nc6 {[%clk 0:01:35.8]} 20. Rf4+ {[%clk 0:01:46]} 20... Kg6 {[%clk
0:01:32.7]} 21. Re6+ {[%clk 0:01:33.4]} 21... Kg5 {[%clk 0:01:21.2]} 22. g3
{[%clk 0:01:33]} 22... Rg6 {[%clk 0:01:10.5]} 23. Ne4+ {[%clk 0:01:26.4]} 23...
Kh5 {[%clk 0:01:07.5]} 24. Rh4# {[%clk 0:01:24.8]} 1-0

[Event "*** SCC Grand Prix: Titled Tuesday Blitz"]
[Site "Chess.com"]
[Date "2020.06.23"]
[Round "5"]
[White "TigrVShlyape"]
[Black "QuintilianoR"]
[Result "1-0"]
[WhiteElo "2916"]
[BlackElo "2626"]
[TimeControl "180+1"]
[EndTime "10:54:14 PDT"]
[Termination "TigrVShlyape won by resignation"]

1. d4 {[%clk 0:03:00.9]} 1... Nf6 {[%clk 0:02:59.7]} 2. Nf3 {[%clk 0:03:00.8]}
2... e6 {[%clk 0:03:00.1]} 3. Bf4 {[%clk 0:03:00.1]} 3... d5 {[%clk 0:02:59.8]}
4. e3 {[%clk 0:03:00.1]} 4... Bd6 {[%clk 0:03:00.1]} 5. Ne5 {[%clk 0:02:59.6]}
5... O-O {[%clk 0:02:58]} 6. Nd2 {[%clk 0:02:59.4]} 6... c5 {[%clk 0:02:57.5]}
7. c3 {[%clk 0:02:58.5]} 7... Qc7 {[%clk 0:02:57.6]} 8. Bd3 {[%clk 0:02:58.4]}
8... Nc6 {[%clk 0:02:48.8]} 9. Ndf3 {[%clk 0:02:57.7]} 9... Ne4 {[%clk
0:02:23.2]} 10. Qc2 {[%clk 0:02:50.5]} 10... f6 {[%clk 0:02:05]} 11. Nxc6 {[%clk
0:02:48]} 11... Bxf4 {[%clk 0:02:03.5]} 12. exf4 {[%clk 0:02:45.6]} 12... Qxc6
{[%clk 0:01:59.2]} 13. O-O {[%clk 0:02:34.9]} 13... g6 {[%clk 0:01:29.7]} 14.
Rfe1 {[%clk 0:02:31.6]} 14... Nd6 {[%clk 0:00:58.7]} 15. dxc5 {[%clk 0:02:28.3]}
15... Qxc5 {[%clk 0:00:58]} 16. Nd4 {[%clk 0:02:28.2]} 16... Ne4 {[%clk
0:00:14.9]} 17. Bxe4 {[%clk 0:02:22.7]} 17... dxe4 {[%clk 0:00:15.8]} 18. Qxe4
{[%clk 0:02:22.7]} 18... Re8 {[%clk 0:00:16.3]} 19. Rad1 {[%clk 0:02:12.6]}
19... Qb6 {[%clk 0:00:16.2]} 20. Nb3 {[%clk 0:02:07.4]} 20... Re7 {[%clk
0:00:15.9]} 21. Qd4 {[%clk 0:02:05.6]} 21... Bd7 {[%clk 0:00:15.9]} 22. Qxf6
{[%clk 0:02:02.9]} 22... Rf7 {[%clk 0:00:16.4]} 23. Qd4 {[%clk 0:02:02]} 23...
Raf8 {[%clk 0:00:17]} 24. Qxb6 {[%clk 0:02:01.1]} 24... axb6 {[%clk 0:00:17.9]}
1-0

[Event "*** SCC Grand Prix: Titled Tuesday Blitz"]
[Site "Chess.com"]
[Date "2020.06.23"]
[Round "5"]
[White "rubhani"]
[Black "chito89"]
[Result "1-0"]
[WhiteElo "2536"]
[BlackElo "2740"]
[TimeControl "180+1"]
[EndTime "10:54:14 PDT"]
[Termination "rubhani won by resignation"]

1. e4 {[%clk 0:02:54.5]} 1... g6 {[%clk 0:02:59]} 2. d4 {[%clk 0:02:54.2]} 2...
Bg7 {[%clk 0:02:59.6]} 3. Nc3 {[%clk 0:02:54.9]} 3... c6 {[%clk 0:03:00.2]} 4.
Be3 {[%clk 0:02:55]} 4... d5 {[%clk 0:02:59.1]} 5. e5 {[%clk 0:02:53.7]} 5...
Nh6 {[%clk 0:02:57.9]} 6. f4 {[%clk 0:02:45.6]} 6... Ng4 {[%clk 0:02:53]} 7. Bc1
{[%clk 0:02:42.3]} 7... h5 {[%clk 0:02:53]} 8. Nf3 {[%clk 0:02:42.1]} 8... b5
{[%clk 0:02:46.6]} 9. Bd3 {[%clk 0:02:41]} 9... Nh6 {[%clk 0:02:40.7]} 10. O-O
{[%clk 0:02:26.6]} 10... Bf5 {[%clk 0:02:40.6]} 11. Nh4 {[%clk 0:01:53.9]} 11...
Bxd3 {[%clk 0:02:39.6]} 12. Qxd3 {[%clk 0:01:54.8]} 12... e6 {[%clk 0:02:40.5]}
13. Nxg6 {[%clk 0:01:52.4]} 13... fxg6 {[%clk 0:02:31.4]} 14. Qxg6+ {[%clk
0:01:52.5]} 14... Kf8 {[%clk 0:02:32.3]} 15. Qxe6 {[%clk 0:01:23]} 15... Qd7
{[%clk 0:02:32]} 16. Qg6 {[%clk 0:01:13.8]} 16... Qf5 {[%clk 0:02:27.2]} 17.
Qd6+ {[%clk 0:01:11.5]} 17... Kf7 {[%clk 0:02:22.9]} 18. Nxd5 {[%clk 0:00:58.2]}
18... Bf8 {[%clk 0:02:06.8]} 19. Qc7+ {[%clk 0:00:54.2]} 19... Qd7 {[%clk
0:02:01.4]} 20. Qxd7+ {[%clk 0:00:53.3]} 20... Nxd7 {[%clk 0:02:00.4]} 21. e6+
{[%clk 0:00:52.8]} 21... Kg6 {[%clk 0:01:57.8]} 22. Nc7 {[%clk 0:00:51.1]} 22...
Rd8 {[%clk 0:01:58]} 23. exd7 {[%clk 0:00:49.1]} 23... Rxd7 {[%clk 0:01:58.9]}
24. Ne6 {[%clk 0:00:47.2]} 24... Nf5 {[%clk 0:01:59.8]} 25. c3 {[%clk
0:00:46.2]} 25... Re7 {[%clk 0:01:59]} 26. Ng5 {[%clk 0:00:46.2]} 26... Bg7
{[%clk 0:01:57.7]} 27. Bd2 {[%clk 0:00:44.6]} 27... Re2 {[%clk 0:01:57.9]} 28.
Nf3 {[%clk 0:00:41.9]} 28... Rhe8 {[%clk 0:01:57]} 29. Rae1 {[%clk 0:00:41.7]}
29... Nd6 {[%clk 0:01:52.9]} 30. Rxe2 {[%clk 0:00:41.3]} 30... Rxe2 {[%clk
0:01:53.8]} 31. Re1 {[%clk 0:00:40.4]} 1-0

[Event "*** SCC Grand Prix: Titled Tuesday Blitz"]
[Site "Chess.com"]
[Date "2020.06.23"]
[Round "5"]
[White "SiddharthGMJagadeesh"]
[Black "theblitzchamp"]
[Result "0-1"]
[WhiteElo "2437"]
[BlackElo "2647"]
[TimeControl "180+1"]
[EndTime "10:54:15 PDT"]
[Termination "theblitzchamp won by resignation"]

1. e4 {[%clk 0:03:00.9]} 1... d6 {[%clk 0:02:58.6]} 2. d4 {[%clk 0:02:59.3]}
2... Nf6 {[%clk 0:02:58.9]} 3. Nc3 {[%clk 0:02:59.3]} 3... g6 {[%clk 0:02:58.8]}
4. g3 {[%clk 0:02:59.7]} 4... Bg7 {[%clk 0:02:57.6]} 5. Bg2 {[%clk 0:03:00]}
5... O-O {[%clk 0:02:54.5]} 6. Nge2 {[%clk 0:03:00]} 6... e5 {[%clk 0:02:52.1]}
7. O-O {[%clk 0:02:59.7]} 7... Nc6 {[%clk 0:02:51.6]} 8. h3 {[%clk 0:02:58.4]}
8... a6 {[%clk 0:02:45.4]} 9. Be3 {[%clk 0:02:52.7]} 9... b5 {[%clk 0:02:29.8]}
10. Qd2 {[%clk 0:02:47.4]} 10... b4 {[%clk 0:02:27]} 11. Nd5 {[%clk 0:02:46.5]}
11... a5 {[%clk 0:02:06.6]} 12. c3 {[%clk 0:02:16.3]} 12... bxc3 {[%clk
0:01:55.5]} 13. bxc3 {[%clk 0:02:14.4]} 13... Ba6 {[%clk 0:01:50.1]} 14. Bg5
{[%clk 0:01:46]} 14... exd4 {[%clk 0:01:17.2]} 15. cxd4 {[%clk 0:01:42.2]} 15...
Bxe2 {[%clk 0:01:14.2]} 16. Qxe2 {[%clk 0:01:40.6]} 16... Nxd4 {[%clk
0:01:14.3]} 17. Qc4 {[%clk 0:01:17.2]} 17... Ne6 {[%clk 0:01:12.3]} 18. Rac1
{[%clk 0:00:56.6]} 18... Nxg5 {[%clk 0:01:10.1]} 0-1

[Event "*** SCC Grand Prix: Titled Tuesday Blitz"]
[Site "Chess.com"]
[Date "2020.06.23"]
[Round "5"]
[White "Anton_Demchenko"]
[Black "ValeriyGrinev"]
[Result "1-0"]
[WhiteElo "2840"]
[BlackElo "2548"]
[TimeControl "180+1"]
[EndTime "10:54:26 PDT"]
[Termination "Anton_Demchenko won by resignation"]

1. d4 {[%clk 0:03:00.9]} 1... Nf6 {[%clk 0:02:59.8]} 2. Nf3 {[%clk 0:03:01.3]}
2... g6 {[%clk 0:03:00.1]} 3. Bg5 {[%clk 0:03:00.6]} 3... Bg7 {[%clk 0:03:00.1]}
4. c3 {[%clk 0:03:00.4]} 4... b6 {[%clk 0:02:53.7]} 5. Nbd2 {[%clk 0:02:59.8]}
5... Bb7 {[%clk 0:02:53]} 6. e3 {[%clk 0:02:59.2]} 6... c5 {[%clk 0:02:52.7]} 7.
Bd3 {[%clk 0:02:57.9]} 7... O-O {[%clk 0:02:45.7]} 8. O-O {[%clk 0:02:57]} 8...
d6 {[%clk 0:02:43]} 9. Re1 {[%clk 0:02:56.2]} 9... Nbd7 {[%clk 0:02:25.5]} 10.
a4 {[%clk 0:02:51.3]} 10... a6 {[%clk 0:02:24.9]} 11. h3 {[%clk 0:02:47.7]}
11... h6 {[%clk 0:02:09]} 12. Bh4 {[%clk 0:02:44.6]} 12... Nh5 {[%clk
0:02:09.4]} 13. Rc1 {[%clk 0:02:30.1]} 13... Rc8 {[%clk 0:01:51.6]} 14. Qe2
{[%clk 0:02:16.4]} 14... cxd4 {[%clk 0:01:49.1]} 15. cxd4 {[%clk 0:02:10.5]}
15... a5 {[%clk 0:01:37.8]} 16. Rxc8 {[%clk 0:01:11.8]} 16... Bxc8 {[%clk
0:01:35.7]} 17. Ne4 {[%clk 0:01:11.4]} 17... Re8 {[%clk 0:01:16]} 18. Nxd6
{[%clk 0:01:09.6]} 18... Rf8 {[%clk 0:01:07.4]} 19. Nxc8 {[%clk 0:01:08.1]}
19... Qxc8 {[%clk 0:01:08.1]} 20. Bxe7 {[%clk 0:01:08.4]} 20... Re8 {[%clk
0:01:07.5]} 21. Bd6 {[%clk 0:01:03.8]} 21... Qc6 {[%clk 0:01:07.2]} 22. Bh2
{[%clk 0:01:03.9]} 22... Qxa4 {[%clk 0:01:07.2]} 23. Bb5 {[%clk 0:01:04.1]} 1-0

[Event "*** SCC Grand Prix: Titled Tuesday Blitz"]
[Site "Chess.com"]
[Date "2020.06.23"]
[Round "5"]
[White "olksuna"]
[Black "ErikRonka"]
[Result "1-0"]
[WhiteElo "2596"]
[BlackElo "2392"]
[TimeControl "180+1"]
[EndTime "10:54:27 PDT"]
[Termination "olksuna won by resignation"]

1. e4 {[%clk 0:03:00.9]} 1... c6 {[%clk 0:02:59]} 2. Ne2 {[%clk 0:03:00]} 2...
d5 {[%clk 0:02:55]} 3. e5 {[%clk 0:03:00.2]} 3... c5 {[%clk 0:02:47.2]} 4. d4
{[%clk 0:03:00]} 4... cxd4 {[%clk 0:02:41]} 5. Nxd4 {[%clk 0:03:00.9]} 5... Nc6
{[%clk 0:02:41.6]} 6. Nxc6 {[%clk 0:02:55.1]} 6... bxc6 {[%clk 0:02:41.9]} 7.
Bd3 {[%clk 0:02:55.7]} 7... e6 {[%clk 0:02:40.4]} 8. O-O {[%clk 0:02:55.3]} 8...
Ne7 {[%clk 0:02:33.3]} 9. Nd2 {[%clk 0:02:55.1]} 9... Ng6 {[%clk 0:02:33.2]} 10.
Nf3 {[%clk 0:02:55.4]} 10... Be7 {[%clk 0:02:33]} 11. g3 {[%clk 0:02:55.8]}
11... O-O {[%clk 0:02:30]} 12. h4 {[%clk 0:02:56.1]} 12... f6 {[%clk 0:02:22.1]}
13. exf6 {[%clk 0:02:54.6]} 13... Bxf6 {[%clk 0:02:17.3]} 14. h5 {[%clk
0:02:54.9]} 14... Ne5 {[%clk 0:02:09.1]} 15. Nxe5 {[%clk 0:02:54.7]} 15... Bxe5
{[%clk 0:02:09.1]} 16. h6 {[%clk 0:02:55.6]} 16... g6 {[%clk 0:02:03.2]} 17. Qe2
{[%clk 0:02:53.3]} 17... Qf6 {[%clk 0:02:00.5]} 18. c3 {[%clk 0:02:52.3]} 18...
Bd6 {[%clk 0:01:52.5]} 19. f4 {[%clk 0:02:44]} 19... e5 {[%clk 0:01:45.5]} 20.
fxe5 {[%clk 0:02:43.6]} 20... Qxf1+ {[%clk 0:01:28.1]} 21. Qxf1 {[%clk
0:02:44.5]} 21... Rxf1+ {[%clk 0:01:28]} 22. Kxf1 {[%clk 0:02:45.4]} 22... Bxe5
{[%clk 0:01:28.2]} 23. Kg2 {[%clk 0:02:46.3]} 23... Bg4 {[%clk 0:01:24.2]} 24.
Bg5 {[%clk 0:02:40]} 24... Rb8 {[%clk 0:01:19.1]} 25. b3 {[%clk 0:02:36.6]}
25... Kf7 {[%clk 0:00:40.2]} 26. Rf1+ {[%clk 0:02:30.8]} 26... Ke6 {[%clk
0:00:36.6]} 27. Re1 {[%clk 0:02:28.7]} 27... Re8 {[%clk 0:00:16.9]} 28. Bf4
{[%clk 0:02:20.2]} 28... Kd6 {[%clk 0:00:17.1]} 29. Rxe5 {[%clk 0:02:20]} 29...
Rxe5 {[%clk 0:00:18]} 30. Bxg6 {[%clk 0:02:17.5]} 30... Ke6 {[%clk 0:00:07.9]}
31. Bxe5 {[%clk 0:02:17.4]} 31... Kxe5 {[%clk 0:00:07.1]} 32. Bxh7 {[%clk
0:02:17]} 1-0